lending/lending_fUSD_20250131
["ID","MTS","AMOUNT","RATE_DAILY","PERIOD"]
[351117680,1738342265957,-770.85,0.00017123,2]
[351117681,1738342265967,-500.0,0.00017123,2]
[351117682,1738342265977,-500.0,0.00017123,2]
[351117683,1738342265986,-500.0,0.00017123,2]
[351117684,1738342265995,-1034.02,0.00017123,2]
[351117685,1738342266005,-537.45,0.00017123,2]
[351117686,1738342266014,-500.0,0.00017123,2]
[351117687,1738342266024,-574.53,0.00017123,2]
[351117688,1738342266033,-500.0,0.00017123,2]
[351117689,1738342266042,-1210.52,0.00017123,2]
[351117690,1738342266051,-2051.75,0.00017123,2]
[351117691,1738342266061,-735.62,0.00017123,2]
[351117692,1738342266072,-500.0,0.00017123,2]
[351117693,1738342266081,-558.79,0.00017123,2]
[351117694,1738342266090,-500.0,0.00017123,2]
[351117695,1738342266099,-500.0,0.00017123,2]
[351117696,1738342266108,-500.0,0.00017123,2]
[351117697,1738342266118,-500.0,0.00017123,2]
[351117698,1738342266127,-500.0,0.00017123,2]
[351117699,1738342266136,-500.0,0.00017123,2]
[351117700,1738342266145,-849.95,0.00017123,2]
[351117701,1738342266155,-5553.43,0.00017123,2]
[351117702,1738342266164,-842.75,0.00017123,2]
[351117703,1738342266173,-870.17,0.00017123,2]
[351117704,1738342266183,-500.0,0.00017123,2]
[351117705,1738342266192,-1427.28,0.00017123,2]
[351117706,1738342266202,-1862.88,0.00017123,2]
[351117707,1738342266211,-644.36,0.00017123,2]
[351117708,1738342266221,-500.0,0.00017123,2]
[351117709,1738342266230,-500.0,0.00017123,2]
[351117710,1738342266240,-946.07,0.00017123,2]
[351117711,1738342266250,-547.94,0.00017123,2]
[351117712,1738342266260,-652.16,0.00017123,2]
[351117713,1738342266269,-606.93,0.00017123,2]
[351117714,1738342266279,-2122.68,0.00017123,2]
[351117715,1738342266288,-500.0,0.00017123,2]
[351117716,1738342266298,-737.5,0.00017123,2]
[351117717,1738342266307,-875.05,0.00017123,2]
[351117718,1738342266316,-500.0,0.00017123,2]
[351117719,1738342266326,-500.0,0.00017123,2]
[351117720,1738342266338,-999.27,0.00017123,2]
[351117721,1738342266348,-500.0,0.00017123,2]
[351117722,1738342266357,-3624.9,0.00017123,2]
[351117723,1738342266369,-1114.2,0.00017123,2]
[351117724,1738342266383,-765.42,0.00017123,2]
[351117725,1738342266397,-1586.15,0.00017123,2]
[351117726,1738342266410,-1184.78,0.00017123,2]
[351117727,1738342266421,-901.83,0.00017123,2]
[351117728,1738342266433,-806.47,0.00017123,2]
[351117729,1738342266447,-708.98,0.00017123,2]
[351117730,1738342266460,-500.0,0.00017123,2]
[351117731,1738342266472,-500.0,0.00017123,2]
[351117732,1738342266488,-553.52,0.00017123,2]
[351117733,1738342266502,-2162.72,0.00017123,2]
[351117734,1738342266514,-500.0,0.00017123,2]
[351117735,1738342266526,-1056.54,0.00017123,2]
[351117736,1738342266538,-304.37321925,0.00017123,2]
[351117737,1738342266549,-876.06,0.00017123,2]
[351117738,1738342266562,-1223.0,0.00017123,2]
[351117739,1738342266576,-500.0,0.00017123,2]
[351117740,1738342266589,-500.0,0.00017123,2]
[351117741,1738342266601,-910.6,0.00017123,2]
[351117742,1738342266614,-1077.13,0.00017123,2]
[351117743,1738342266627,-543.95,0.00017123,2]
[351117744,1738342266640,-500.0,0.00017123,2]
[351117745,1738342266653,-500.0,0.00017123,2]
[351117746,1738342266665,-637.88,0.00017123,2]
[351117747,1738342266679,-548.61,0.00017123,2]
[351117748,1738342266691,-604.46056519,0.00017123,2]
[351117749,1738342266703,-854.38,0.00017123,2]
[351117750,1738342266716,-1738.96,0.00017123,2]
[351117751,1738342266729,-500.0,0.00017123,2]
[351117752,1738342266740,-985.04,0.00017123,2]
[351117753,1738342266753,-500.0,0.00017123,2]
[351117754,1738342266765,-500.0,0.00017123,2]
[351117755,1738342266778,-696.95,0.00017123,2]
[351117756,1738342266790,-500.0,0.00017123,2]
[351117757,1738342266801,-736.48,0.00017123,2]
[351117758,1738342266812,-500.0,0.00017123,2]
[351117759,1738342266824,-1084.41,0.00017123,2]
[351117760,1738342266835,-500.0,0.00017123,2]
[351117761,1738342266848,-907.33,0.00017123,2]
[351117762,1738342266862,-500.0,0.00017123,2]
[351117763,1738342266874,-590.95,0.00017123,2]
[351117764,1738342266884,-1161.06,0.00017123,2]
[351117765,1738342266898,-1073.16,0.00017123,2]
[351117766,1738342266908,-500.0,0.00017123,2]
[351117767,1738342266920,-625.53,0.00017123,2]
[351117768,1738342266933,-1101.76,0.00017123,2]
[351117769,1738342266946,-1873.5,0.00017123,2]
[351117770,1738342266957,-599.69,0.00017123,2]
[351117771,1738342266967,-1821.67,0.00017123,2]
[351117772,1738342266977,-500.0,0.00017123,2]
[351117773,1738342266989,-1313.27,0.00017123,2]
[351117774,1738342267000,-618.56,0.00017123,2]
[351117775,1738342267011,-500.0,0.00017123,2]
[351117776,1738342267021,-500.0,0.00017123,2]
[351117777,1738342267033,-2153.97,0.00017123,2]
[351117778,1738342267044,-500.0,0.00017123,2]
[351117779,1738342267055,-500.0,0.00017123,7]
[351117780,1738342267068,-500.0,0.00017123,2]
[351117781,1738342267080,-2200.41,0.00017123,2]
[351117782,1738342267091,-1292.23,0.00017123,2]
[351117783,1738342267102,-500.0,0.00017123,2]
[351117784,1738342267113,-500.0,0.00017123,2]
[351117785,1738342267124,-500.0,0.00017123,2]
[351117786,1738342267135,-647.39,0.00017123,2]
[351117787,1738342267146,-2161.46,0.00017123,2]
[351117788,1738342267157,-812.84,0.00017123,2]
[351117789,1738342267169,-859.99,0.00017123,2]
[351117790,1738342267180,-1964.96,0.00017123,2]
[351117791,1738342267192,-1333.15,0.00017123,2]
[351117792,1738342267204,-597.11,0.00017123,2]
[351117793,1738342267216,-663.52,0.00017123,2]
[351117794,1738342267228,-500.0,0.00017123,2]
[351117795,1738342267239,-500.0,0.00017123,2]
[351117796,1738342267250,-500.0,0.00017123,2]
[351117797,1738342267262,-580.35,0.00017123,2]
[351117798,1738342267273,-808.41,0.00017123,2]
[351117799,1738342267285,-1589.04,0.00017123,2]
[351117800,1738342267296,-793.55,0.00017123,2]
[351117801,1738342267307,-1060.78,0.00017123,2]
[351117802,1738342267318,-993.9,0.00017123,2]
[351117803,1738342267334,-4214.69,0.00017123,2]
[351117804,1738342267344,-607.58,0.00017123,2]
[351117805,1738342267355,-928.84,0.00017123,2]
[351117806,1738342267367,-652.41,0.00017123,2]
[351117807,1738342267379,-2629.44,0.00017123,2]
[351117808,1738342267390,-500.0,0.00017123,2]
[351117809,1738342267402,-2238.64,0.00017123,2]
[351117810,1738342267413,-1964.96,0.00017123,2]
[351117811,1738342267424,-599.97,0.00017123,2]
[351117812,1738342267435,-697.51,0.00017123,2]
[351117813,1738342267447,-640.63,0.00017123,2]
[351117814,1738342267458,-1888.52,0.00017123,2]
[351117815,1738342267469,-500.0,0.00017123,2]
[351117816,1738342267480,-727.94,0.00017123,2]
[351117817,1738342267495,-1014.48,0.00017123,2]
[351117818,1738342267505,-500.0,0.00017123,2]
[351117819,1738342267516,-828.89,0.00017123,2]
[351117820,1738342267527,-1487.99,0.00017123,2]
[351117821,1738342267539,-3222.5,0.00017123,2]
[351117822,1738342267551,-1795.19,0.00017123,2]
[351117823,1738342267561,-2265.6,0.00017123,2]
[351117824,1738342267573,-872.12,0.00017123,2]
[351117825,1738342267586,-816.69,0.00017123,2]
[351117826,1738342267597,-500.0,0.00017123,2]
[351117827,1738342267608,-1031.69,0.00017123,2]
[351117828,1738342267620,-500.0,0.00017123,2]
[351117829,1738342267631,-670.33,0.00017123,2]
[351117830,1738342267642,-646.82107817,0.00017123,2]
[351117831,1738342267653,-993.78,0.00017123,2]
[351117832,1738342267665,-500.0,0.00017123,2]
[351117833,1738342267676,-500.0,0.00017123,2]
[351117834,1738342267687,-1282.54,0.00017123,2]
[351117835,1738342267698,-2751.51,0.00017123,2]
[351117836,1738342267709,-500.0,0.00017123,2]
[351117837,1738342267719,-500.0,0.00017123,2]
[351117838,1738342267731,-1329.51,0.00017123,2]
[351117839,1738342267745,-3525.57,0.00017123,2]
[351117840,1738342267756,-1305.13,0.00017123,2]
[351117841,1738342267767,-688.66,0.00017123,2]
[351117842,1738342267778,-500.0,0.00017123,2]
[351117843,1738342267790,-841.88,0.00017123,2]
[351117844,1738342267801,-845.67,0.00017123,2]
[351117845,1738342267812,-616.89484881,0.00017123,2]
[351117846,1738342267822,-674.52,0.00017123,2]
[351117847,1738342267836,-580.04,0.00017123,2]
[351117848,1738342267846,-1244.66,0.00017123,2]
[351117849,1738342267857,-727.99,0.00017123,2]
[351117850,1738342267867,-406.64,0.00017123,2]
[351117851,1738342267878,-2549.75,0.00017125,2]
[351117852,1738342267888,-3720.85,0.00017125,2]
[351117853,1738342267899,-909.48,0.00017125,2]
[351117854,1738342267910,-788.14,0.00017125,2]
[351117855,1738342267921,-677.82,0.00017125,2]
[351117856,1738342267931,-1339.48,0.00017125,2]
[351117857,1738342267941,-500.0,0.00017125,2]
[351117858,1738342267952,-730.83,0.00017125,2]
[351117859,1738342267963,-1274.55,0.00017125,2]
[351117860,1738342267974,-1019.17,0.00017125,2]
[351117861,1738342267985,-1000.0,0.00017125,2]
[351117862,1738342267995,-725.98,0.00017125,2]
[351117863,1738342268007,-500.0,0.00017125,2]
[351117864,1738342268018,-925.96,0.00017125,2]
[351117865,1738342268029,-1634.97,0.00017125,2]
[351117866,1738342268040,-1549.91992772,0.00017141,2]
[351117867,1738342268051,-247.55758825,0.00017148,2]
[351117868,1738342268062,-151.8241807,0.00017148,2]
[351117869,1738342268073,-150.77714543,0.00017148,2]
[351117870,1738342268087,-500.0,0.00017148,2]
[351117871,1738342268099,-2533.9,0.00017159,2]
[351117872,1738342268111,-590.72,0.00017159,2]
[351117873,1738342268122,-2265.53,0.00017159,2]
[351117874,1738342268134,-738.79,0.00017159,2]
[351117875,1738342268145,-500.0,0.00017159,2]
[351117876,1738342268157,-737.08,0.00017159,2]
[351117877,1738342268168,-359.76243041,0.0001716,2]
[351117878,1738342268179,-1114.63,0.00017169,2]
[351117879,1738342268192,-500.0,0.00017176,2]
[351117880,1738342268203,-500.0,0.00017203,2]
[351117881,1738342268214,-386.89413812,0.00017213,2]
[351117882,1738342268225,-209.0,0.0001723,2]
[351117883,1738342268236,-500.0,0.00017231,2]
[351117884,1738342268248,-500.0,0.00017258,2]
[351117885,1738342268259,-500.0,0.00017259,2]
[351117886,1738342268270,-500.0,0.00017259,2]
[351117887,1738342268282,-500.0,0.00017259,2]
[351117888,1738342268292,-500.0,0.00017259,2]
[351117889,1738342268303,-500.0,0.00017259,2]
[351117890,1738342268314,-500.0,0.00017259,2]
[351117891,1738342268328,-500.0,0.00017259,2]
[351117892,1738342268338,-502.50114763,0.00017259,2]
[351117893,1738342268349,-500.0,0.00017259,2]
[351117894,1738342268360,-500.0,0.00017259,2]
[351117895,1738342268370,-500.0,0.00017259,2]
[351117896,1738342268381,-500.0,0.00017259,2]
[351117897,1738342268393,-500.0,0.00017259,2]
[351117898,1738342268403,-500.0,0.00017259,2]
[351117899,1738342268413,-500.0,0.00017259,2]
[351117900,1738342268423,-500.0,0.00017259,2]
[351117901,1738342268434,-500.0,0.00017259,2]
[351117902,1738342268444,-500.0,0.0001726,2]
[351117903,1738342268455,-565.74,0.0001726,2]
[351117904,1738342268466,-799.26,0.0001726,2]
[351117905,1738342268476,-500.0,0.0001726,2]
[351117906,1738342268488,-500.0,0.0001726,2]
[351117907,1738342268502,-500.0,0.0001726,2]
[351117908,1738342268512,-599.655912,0.0001726,2]
[351117909,1738342268523,-500.0,0.0001726,2]
[351117910,1738342268534,-500.0,0.0001726,2]
[351117911,1738342268545,-500.0,0.0001726,2]
[351117912,1738342268556,-582.941315,0.0001726,2]
[351117913,1738342268566,-400.16873981,0.0001726,2]
[351117914,1738342268580,-847.94,0.0001726,2]
[351117915,1738342268591,-500.0,0.0001726,2]
[351117916,1738342268602,-524.61,0.0001726,2]
[351117917,1738342268613,-500.0,0.0001726,2]
[351117918,1738342268624,-791.88,0.0001726,2]
[351117919,1738342268634,-806.25,0.0001726,2]
[351117920,1738342268645,-705.27,0.0001726,2]
[351117921,1738342268656,-500.0,0.0001726,2]
[351117922,1738342268666,-869.24,0.0001726,2]
[351117923,1738342268677,-719.69,0.0001726,2]
[351117924,1738342268688,-500.0,0.0001726,2]
[351117925,1738342268699,-459.10208495,0.0001726,2]
[351117926,1738342268710,-821.32,0.0001726,2]
[351117927,1738342268721,-500.0,0.0001726,2]
[351117928,1738342268732,-500.0,0.0001726,2]
[351117929,1738342268743,-500.0,0.0001726,2]
[351117930,1738342268754,-905.75,0.0001726,2]
[351117931,1738342268765,-500.0,0.0001726,2]
[351117932,1738342268776,-573.01,0.0001726,2]
[351117933,1738342268786,-740.51,0.0001726,2]
[351117934,1738342268797,-500.0,0.0001726,2]
[351117935,1738342268808,-500.0,0.0001726,2]
[351117936,1738342268818,-500.0,0.0001726,2]
[351117937,1738342268831,-500.0,0.0001726,2]
[351117938,1738342268841,-507.9,0.0001726,2]
[351117939,1738342268852,-500.0,0.0001726,2]
[351117940,1738342268863,-500.0,0.0001726,2]
[351117941,1738342268874,-1105.19,0.0001726,2]
[351117942,1738342268884,-710.09,0.0001726,2]
[351117943,1738342268895,-500.0,0.0001726,2]
[351117944,1738342268906,-577.81,0.0001726,2]
[351117945,1738342268916,-919.32,0.0001726,2]
[351117946,1738342268927,-500.0,0.0001726,2]
[351117947,1738342268937,-500.0,0.0001726,2]
[351117948,1738342268948,-1149.27,0.0001726,2]
[351117949,1738342268959,-550.11,0.0001726,2]
[351117950,1738342268970,-749.78,0.0001726,2]
[351117951,1738342268981,-500.0,0.0001726,2]
[351117952,1738342268992,-916.66,0.0001726,2]
[351117953,1738342269003,-500.0,0.0001726,2]
[351117954,1738342269013,-523.77,0.0001726,2]
[351117955,1738342269024,-551.33,0.0001726,2]
[351117956,1738342269034,-1072.53,0.0001726,2]
[351117957,1738342269044,-500.0,0.0001726,2]
[351117958,1738342269055,-737.84,0.0001726,2]
[351117959,1738342269065,-500.0,0.0001726,2]
[351117960,1738342269078,-768.71,0.0001726,2]
[351117961,1738342269088,-750.33,0.0001726,2]
[351117962,1738342269099,-500.0,0.0001726,2]
[351117963,1738342269109,-500.0,0.0001726,2]
[351117964,1738342269369,-514.9,0.0001726,2]
[351117965,1738342269480,-1122.13,0.0001726,2]
[351117966,1738342269498,-500.0,0.0001726,2]
[351117967,1738342269508,-500.0,0.0001726,2]
[351117968,1738342269518,-659.41,0.0001726,2]
[351117969,1738342269527,-500.0,0.0001726,2]
[351117970,1738342269536,-500.0,0.0001726,2]
[351117971,1738342269545,-623.91,0.0001726,2]
[351117972,1738342269554,-500.0,0.0001726,2]
[351117973,1738342269564,-641.85,0.0001726,2]
[351117974,1738342269573,-500.0,0.0001726,2]
[351117975,1738342269584,-1029.01,0.0001726,2]
[351117976,1738342269593,-832.01,0.0001726,2]
[351117977,1738342269602,-500.0,0.0001726,2]
[351117978,1738342269611,-876.06,0.0001726,2]
[351117979,1738342269620,-500.0,0.0001726,2]
[351117980,1738342269629,-558.3,0.0001726,2]
[351117981,1738342269638,-579.8,0.0001726,2]
[351117982,1738342269648,-500.0,0.0001726,2]
[351117983,1738342269658,-500.85,0.0001726,2]
[351117984,1738342269667,-500.0,0.0001726,2]
[351117985,1738342269676,-500.0,0.0001726,2]
[351117986,1738342269685,-670.95,0.0001726,2]
[351117987,1738342269694,-500.0,0.0001726,2]
[351117988,1738342269703,-500.0,0.0001726,2]
[351117989,1738342269713,-500.0,0.0001726,2]
[351117990,1738342269723,-490.42754912,0.0001726,2]
[351117991,1738342269732,-500.0,0.0001726,2]
[351117992,1738342269742,-500.0,0.0001726,2]
[351117993,1738342269751,-500.0,0.0001726,2]
[351117994,1738342269760,-500.0,0.0001726,2]
[351117995,1738342269769,-500.0,0.0001726,2]
[351117996,1738342269779,-500.0,0.0001726,2]
[351117997,1738342269788,-511.44,0.0001726,2]
[351117998,1738342269797,-558.07,0.0001726,2]
[351117999,1738342269806,-500.0,0.0001726,2]
[351118000,1738342269815,-500.0,0.0001726,2]
[351118001,1738342269824,-500.0,0.0001726,2]
[351118002,1738342269835,-500.0,0.0001726,2]
[351118003,1738342269844,-932.44,0.0001726,2]
[351118004,1738342269853,-770.85,0.0001726,2]
[351118005,1738342269862,-500.0,0.0001726,2]
[351118006,1738342269871,-500.0,0.0001726,2]
[351118007,1738342269880,-500.0,0.0001726,2]
[351118008,1738342269891,-1034.02,0.0001726,2]
[351118009,1738342269900,-537.45,0.0001726,2]
[351118010,1738342269910,-500.0,0.0001726,2]
[351118011,1738342269919,-574.53,0.0001726,2]
[351118012,1738342269929,-1210.52,0.0001726,2]
[351118013,1738342269939,-2051.75,0.0001726,2]
[351118014,1738342269949,-735.62,0.0001726,2]
[351118015,1738342269958,-522.8163337,0.0001726,2]
[351118016,1738342269969,-558.79,0.0001726,2]
[351118017,1738342269978,-500.0,0.0001726,2]
[351118018,1738342269987,-500.0,0.0001726,2]
[351118019,1738342269996,-500.0,0.0001726,2]
[351118020,1738342270006,-529.46123322,0.0001726,2]
[351118021,1738342270015,-500.0,0.0001726,2]
[351118022,1738342270024,-500.0,0.0001726,2]
[351118023,1738342270034,-849.95,0.0001726,2]
[351118024,1738342270044,-5553.43,0.0001726,2]
[351118025,1738342270053,-842.75,0.0001726,2]
[351118026,1738342270063,-870.17,0.0001726,2]
[351118027,1738342270072,-500.0,0.0001726,2]
[351118028,1738342270082,-1427.28,0.0001726,2]
[351118029,1738342270091,-1862.88,0.0001726,2]
[351118030,1738342270101,-644.36,0.0001726,2]
[351118031,1738342270110,-500.0,0.0001726,2]
[351118032,1738342270120,-500.0,0.0001726,2]
[351118033,1738342270129,-946.07,0.0001726,2]
[351118034,1738342270138,-547.94,0.0001726,2]
[351118035,1738342270148,-652.16,0.0001726,2]
[351118036,1738342270157,-606.93,0.0001726,2]
[351118037,1738342270167,-2122.68,0.0001726,2]
[351118038,1738342270176,-500.0,0.0001726,2]
[351118039,1738342270185,-737.5,0.0001726,2]
[351118040,1738342270194,-875.05,0.0001726,2]
[351118041,1738342270203,-500.0,0.0001726,2]
[351118042,1738342270213,-500.0,0.0001726,2]
[351118043,1738342270222,-999.27,0.0001726,2]
[351118044,1738342270231,-500.0,0.0001726,2]
[351118045,1738342270241,-3624.9,0.0001726,2]
[351118046,1738342270250,-1114.2,0.0001726,2]
[351118047,1738342270260,-765.42,0.0001726,2]
[351118048,1738342270269,-1586.15,0.0001726,2]
[351118049,1738342270280,-1184.78,0.0001726,2]
[351118050,1738342270290,-901.83,0.0001726,2]
[351118051,1738342270299,-806.47,0.0001726,2]
[351118052,1738342270309,-708.98,0.0001726,2]
[351118053,1738342270318,-500.0,0.0001726,2]
[351118054,1738342270328,-475.32,0.0001726,2]
[351118055,1738342270337,-553.52,0.0001726,2]
[351118056,1738342270347,-2162.72,0.0001726,2]
[351118057,1738342270356,-500.0,0.0001726,2]
[351118058,1738342270366,-1056.54,0.0001726,2]
[351118059,1738342270375,-876.06,0.0001726,2]
[351118060,1738342270385,-1223.0,0.0001726,2]
[351118061,1738342270394,-500.0,0.0001726,2]
[351118062,1738342270403,-500.0,0.0001726,2]
[351118063,1738342270412,-910.6,0.0001726,2]
[351118064,1738342270421,-1077.13,0.0001726,2]
[351118065,1738342270430,-543.95,0.0001726,2]
[351118066,1738342270440,-500.0,0.0001726,2]
[351118067,1738342270449,-500.0,0.0001726,2]
[351118068,1738342270458,-637.88,0.0001726,2]
[351118069,1738342270468,-548.61,0.0001726,2]
[351118070,1738342270478,-854.38,0.0001726,2]
[351118071,1738342270489,-1738.96,0.0001726,2]
[351118072,1738342270502,-500.0,0.0001726,2]
[351118073,1738342270511,-985.04,0.0001726,2]
[351118074,1738342270520,-500.0,0.0001726,2]
[351118075,1738342270529,-500.0,0.0001726,2]
[351118076,1738342270538,-696.95,0.0001726,2]
[351118077,1738342270547,-500.0,0.0001726,2]
[351118078,1738342270557,-736.48,0.0001726,2]
[351118079,1738342270566,-500.0,0.0001726,2]
[351118080,1738342270576,-1084.41,0.0001726,2]
[351118081,1738342270585,-500.0,0.0001726,2]
[351118082,1738342270595,-907.33,0.0001726,2]
[351118083,1738342270604,-500.0,0.0001726,2]
[351118084,1738342270614,-590.95,0.0001726,2]
[351118085,1738342270624,-1161.06,0.0001726,2]
[351118086,1738342270634,-1073.16,0.0001726,2]
[351118087,1738342270643,-625.53,0.0001726,2]
[351118088,1738342270653,-1101.76,0.0001726,2]
[351118089,1738342270663,-500.0,0.0001726,2]
[351118090,1738342270672,-1873.5,0.0001726,2]
[351118091,1738342270681,-599.69,0.0001726,2]
[351118092,1738342270690,-1821.67,0.0001726,2]
[351118093,1738342270699,-500.0,0.0001726,2]
[351118094,1738342270708,-1313.27,0.0001726,2]
[351118095,1738342270722,-618.56,0.0001726,2]
[351118096,1738342270730,-500.0,0.0001726,2]
[351118097,1738342270740,-500.0,0.0001726,2]
[351118098,1738342270749,-2153.97,0.0001726,2]
[351118099,1738342270759,-500.0,0.0001726,2]
[351118100,1738342270768,-500.0,0.0001726,7]
[351118101,1738342270777,-500.0,0.0001726,2]
[351118102,1738342270786,-2200.41,0.0001726,2]
[351118103,1738342270794,-1292.23,0.0001726,2]
[351118104,1738342270804,-500.0,0.0001726,2]
[351118105,1738342270815,-500.0,0.0001726,2]
[351118106,1738342270825,-500.0,0.0001726,2]
[351118107,1738342270836,-647.39,0.0001726,2]
[351118108,1738342270845,-2161.46,0.0001726,2]
[351118109,1738342270853,-812.84,0.0001726,2]
[351118110,1738342270863,-859.99,0.0001726,2]
[351118111,1738342270872,-1964.96,0.0001726,2]
[351118112,1738342270881,-1333.15,0.0001726,2]
[351118113,1738342270890,-597.11,0.0001726,2]
[351118114,1738342270899,-663.52,0.0001726,2]
[351118115,1738342270909,-500.0,0.0001726,2]
[351118116,1738342270918,-500.0,0.0001726,2]
[351118117,1738342270928,-500.0,0.0001726,2]
[351118118,1738342270938,-580.35,0.0001726,2]
[351118119,1738342270947,-808.41,0.0001726,2]
[351118120,1738342270957,-1589.04,0.0001726,2]
[351118121,1738342270966,-793.55,0.0001726,2]
[351118122,1738342270976,-1060.78,0.0001726,2]
[351118123,1738342270985,-993.9,0.0001726,2]
[351118124,1738342270995,-4214.69,0.0001726,2]
[351118125,1738342271004,-607.58,0.0001726,2]
[351118126,1738342271014,-928.84,0.0001726,2]
[351118127,1738342271025,-652.41,0.0001726,2]
[351118128,1738342271038,-2629.44,0.0001726,2]
[351118129,1738342271047,-500.0,0.0001726,2]
[351118130,1738342271058,-2238.64,0.0001726,2]
[351118131,1738342271068,-1964.96,0.0001726,2]
[351118132,1738342271080,-599.97,0.0001726,2]
[351118133,1738342271089,-697.51,0.0001726,2]
[351118134,1738342271099,-640.63,0.0001726,2]
[351118135,1738342271108,-1888.52,0.0001726,2]
[351118136,1738342271118,-727.94,0.0001726,2]
[351118137,1738342271127,-1014.48,0.0001726,2]
[351118138,1738342271137,-500.0,0.0001726,2]
[351118139,1738342271146,-828.89,0.0001726,2]
[351118140,1738342271156,-1487.99,0.0001726,2]
[351118141,1738342271165,-3222.5,0.0001726,2]
[351118142,1738342271175,-1795.19,0.0001726,2]
[351118143,1738342271184,-2265.6,0.0001726,2]
[351118144,1738342271193,-872.12,0.0001726,2]
[351118145,1738342271202,-816.69,0.0001726,2]
[351118146,1738342271211,-1031.69,0.0001726,2]
[351118147,1738342271222,-500.0,0.0001726,2]
[351118148,1738342271232,-670.33,0.0001726,2]
[351118149,1738342271241,-993.78,0.0001726,2]
[351118150,1738342271251,-500.0,0.0001726,2]
[351118151,1738342271261,-500.0,0.0001726,2]
[351118152,1738342271271,-1282.54,0.0001726,2]
[351118153,1738342271281,-2751.51,0.0001726,2]
[351118154,1738342271291,-500.0,0.0001726,2]
[351118155,1738342271301,-500.0,0.0001726,2]
[351118156,1738342271311,-1329.51,0.0001726,2]
[351118157,1738342271320,-3525.57,0.0001726,2]
[351118158,1738342271330,-1305.13,0.0001726,2]
[351118159,1738342271339,-500.0,0.0001726,2]
[351118160,1738342271349,-688.66,0.0001726,2]
[351118161,1738342271359,-841.88,0.0001726,2]
[351118162,1738342271369,-845.67,0.0001726,2]
[351118163,1738342271378,-674.52,0.0001726,2]
[351118164,1738342271387,-580.04,0.0001726,2]
[351118165,1738342271396,-1244.66,0.0001726,2]
[351118166,1738342271406,-727.99,0.0001726,2]
[351118167,1738342271415,-2549.75,0.00017262,2]
[351118168,1738342271424,-3720.85,0.00017262,2]
[351118169,1738342271434,-909.48,0.00017262,2]
[351118170,1738342271443,-788.14,0.00017262,2]
[351118171,1738342271453,-677.82,0.00017262,2]
[351118172,1738342271463,-1339.48,0.00017262,2]
[351118173,1738342271473,-500.0,0.00017262,2]
[351118174,1738342271482,-730.83,0.00017262,2]
[351118175,1738342271495,-1274.55,0.00017262,2]
[351118176,1738342271504,-1019.17,0.00017262,2]
[351118177,1738342271514,-1000.0,0.00017262,2]
[351118178,1738342271523,-725.98,0.00017262,2]
[351118179,1738342271533,-500.0,0.00017262,2]